fUST/lending_fUST_20240116
["ID","MTS","AMOUNT","RATE_DAILY","PERIOD"]
[311752231,1705377041497,-500.0,0.00023522,2]
[311752232,1705377041506,-2170.17,0.00023522,2]
[311752233,1705377041515,-217.60980142,0.00023627,2]
[311752234,1705377041524,-500.0,0.00023756,2]
[311752235,1705377041536,-500.0,0.00023756,2]
[311752236,1705377041545,-500.0,0.00023756,2]
[311752237,1705377041555,-500.0,0.00023756,2]
[311752238,1705377041564,-796.22,0.00023756,2]
[311752239,1705377041574,-1882.608869,0.00023757,2]
[311752240,1705377041583,-1882.608869,0.00023757,2]
[311752241,1705377041592,-500.0,0.00023757,2]
[311752242,1705377041602,-500.0,0.00023757,2]
[311752243,1705377041611,-500.0,0.00023757,2]
[311752244,1705377041621,-514.91644463,0.00023757,2]
[311752245,1705377041630,-500.0,0.00023757,2]
[311752246,1705377041639,-500.0,0.00023757,2]
[311752247,1705377041649,-500.0,0.00023757,2]
[311752248,1705377041659,-500.0,0.00023757,2]
[311752249,1705377041669,-535.01,0.00023757,2]
[311752250,1705377041679,-505.48,0.00023757,2]
[311752251,1705377041688,-733.48,0.00023757,2]
[311752252,1705377041698,-500.0,0.00023757,2]
[311752254,1705377041707,-509.76,0.00023757,2]
[311752256,1705377041715,-500.0,0.00023757,2]
[311752257,1705377041724,-500.0,0.00023757,2]
[311752258,1705377041734,-2683.72,0.00023757,2]
[311752259,1705377041742,-205.02741157,0.00023757,2]
[311752260,1705377041751,-1934.31,0.00023757,2]
[311752261,1705377041760,-500.0,0.00023757,2]
[311752262,1705377041770,-531.30773813,0.00023757,2]
[311752263,1705377041779,-500.0,0.00023757,2]
[311752264,1705377041789,-1051.06,0.00023757,2]
[311752265,1705377041798,-366.78808494,0.00023758,2]
[311752266,1705377041807,-500.0,0.00023758,2]
[311752267,1705377041816,-500.0,0.00023758,2]
[311752268,1705377041825,-500.0,0.00023758,2]
[311752269,1705377041834,-920.06,0.00023758,2]
[311752270,1705377041843,-5484.47,0.00023792,2]
[311752271,1705377041853,-993.324617,0.00023793,2]
[311752272,1705377041862,-993.324617,0.00023793,2]
[311752273,1705377041871,-500.0,0.00023793,2]
[311752274,1705377041880,-500.0,0.00023793,2]
[311752275,1705377041889,-636.78,0.00023793,2]
[311752276,1705377041898,-1219.25,0.00023793,2]
[311752277,1705377041907,-151.0,0.00023794,2]
[311752278,1705377041917,-1882.608869,0.00023794,2]
[311752279,1705377041926,-1882.608869,0.00023794,2]
[311752280,1705377041938,-500.0,0.00023794,2]
[311752281,1705377041947,-572.48,0.00023794,2]
[311752282,1705377041957,-923.17,0.00023794,2]
[311752283,1705377041966,-500.0,0.00023794,2]
[311752284,1705377041975,-1511.34,0.00023794,2]
[311752285,1705377041985,-550.76,0.00023796,2]
[311752286,1705377041994,-1576.94,0.00023796,2]
[311752287,1705377042003,-8122.34,0.00023796,2]
[311752288,1705377042012,-500.0,0.00023796,2]
[311752289,1705377042021,-500.0,0.00023796,2]
[311752290,1705377042030,-2170.17,0.00023796,2]
[311752291,1705377042039,-50000.0,0.00023855,2]
[311752292,1705377042048,-151.0,0.00023855,2]
[311752293,1705377042058,-993.324617,0.00023855,2]
[311752294,1705377042066,-993.324617,0.00023855,2]
[311752295,1705377042075,-1882.608869,0.00023855,2]
[311752296,1705377042084,-1882.608869,0.00023855,2]
[311752297,1705377042094,-174.74212924,0.000239,2]
[311752298,1705377042103,-166.666666,0.00023969,2]
[311752299,1705377042112,-4009.14861516,0.00024,2]
[311752300,1705377042121,-217.60980142,0.00024004,2]
[311752301,1705377042130,-500.0,0.0002403,2]
[311752302,1705377042140,-500.0,0.0002403,2]
[311752303,1705377042149,-500.0,0.0002403,2]
[311752304,1705377042158,-796.22,0.0002403,2]
[311752305,1705377042168,-500.0,0.00024031,2]
[311752306,1705377042177,-500.0,0.00024031,2]
[311752307,1705377042186,-500.0,0.00024031,2]
[311752308,1705377042195,-500.0,0.00024031,2]
[311752309,1705377042205,-500.0,0.00024031,2]
[311752310,1705377042214,-500.0,0.00024031,2]
[311752311,1705377042223,-500.0,0.00024031,2]
[311752312,1705377042232,-535.01,0.00024031,2]
[311752313,1705377042241,-505.48,0.00024031,2]
[311752314,1705377042250,-733.48,0.00024031,2]
[311752315,1705377042260,-500.0,0.00024031,2]
[311752316,1705377042269,-509.76,0.00024031,2]
[311752317,1705377042278,-287.51986679,0.00024031,2]
[311752318,1705377042288,-500.0,0.00024031,2]
[311752319,1705377042297,-2683.72,0.00024031,2]
[311752320,1705377042307,-1934.31,0.00024031,2]
[311752321,1705377042317,-500.0,0.00024031,2]
[311752322,1705377042328,-500.0,0.00024031,2]
[311752323,1705377042339,-1051.06,0.00024031,2]
[311752324,1705377042349,-500.0,0.00024032,2]
[311752325,1705377042358,-500.0,0.00024032,2]
[311752326,1705377042367,-920.06,0.00024032,2]
[311752327,1705377042378,-151.0,0.00024032,2]
[311752328,1705377042387,-993.324617,0.00024032,2]
[311752329,1705377042396,-993.324617,0.00024032,2]
[311752330,1705377042406,-1882.608869,0.00024032,2]
[311752331,1705377042416,-1882.608869,0.00024032,2]
[311752332,1705377042426,-5484.47,0.00024066,2]
[311752333,1705377042435,-500.0,0.00024067,2]
[311752334,1705377042444,-500.0,0.00024067,2]
[311752335,1705377042454,-636.78,0.00024067,2]
[311752336,1705377042463,-1219.25,0.00024067,2]
[311752337,1705377042474,-462.69605503,0.00024068,2]
[311752338,1705377042483,-572.48,0.00024068,2]
[311752339,1705377042492,-923.17,0.00024068,2]
[311752340,1705377042502,-500.0,0.00024068,2]
[311752341,1705377042511,-1511.34,0.00024068,2]
[311752342,1705377042521,-550.76,0.0002407,2]
[311752343,1705377042530,-1576.94,0.0002407,2]
[311752344,1705377042540,-8122.34,0.0002407,2]
[311752345,1705377042550,-500.0,0.0002407,2]
[311752346,1705377042559,-500.0,0.0002407,2]
[311752347,1705377042568,-2170.17,0.0002407,2]
[311752348,1705377042578,-200.0,0.000241,7]
[311752349,1705377042588,-500.0,0.00024304,2]
[311752350,1705377042597,-500.0,0.00024304,2]
[311752351,1705377042606,-500.0,0.00024304,2]
[311752352,1705377042616,-796.22,0.00024304,2]
[311752353,1705377042626,-993.324617,0.00024305,2]
[311752354,1705377042635,-993.324617,0.00024305,2]
[311752355,1705377042645,-1882.608869,0.00024305,2]
[311752356,1705377042654,-1882.608869,0.00024305,2]
[311752357,1705377042663,-500.0,0.00024305,2]
[311752358,1705377042672,-500.0,0.00024305,2]
[311752359,1705377042681,-500.0,0.00024305,2]
[311752360,1705377042690,-500.0,0.00024305,2]
[311752361,1705377042769,-500.0,0.00024305,2]
[311752362,1705377042779,-535.01,0.00024305,2]
[311752363,1705377042789,-505.48,0.00024305,2]
[311752364,1705377042798,-733.48,0.00024305,2]
[311752365,1705377042807,-500.0,0.00024305,2]
[311752366,1705377042816,-509.76,0.00024305,2]
[311752367,1705377042826,-500.0,0.00024305,2]
[311752368,1705377042835,-2683.72,0.00024305,2]
[311752369,1705377042845,-1934.31,0.00024305,2]
[311752370,1705377042855,-500.0,0.00024305,2]
[311752371,1705377042864,-500.0,0.00024305,2]
[311752372,1705377042873,-1051.06,0.00024305,2]
[311752373,1705377042883,-500.0,0.00024306,2]
[311752374,1705377042892,-920.06,0.00024306,2]
[311752375,1705377042902,-151.0,0.00024306,2]
[311752376,1705377042911,-5484.47,0.0002434,2]
[311752377,1705377042920,-500.0,0.00024341,2]
[311752378,1705377042929,-500.0,0.00024341,2]
[311752379,1705377042938,-636.78,0.00024341,2]
[311752380,1705377042948,-1219.25,0.00024341,2]
[311752381,1705377042957,-993.324617,0.00024342,2]
[311752382,1705377042968,-993.324617,0.00024342,2]
[311752383,1705377042978,-1882.608869,0.00024342,2]
[311752384,1705377042987,-1882.608874,0.00024342,2]
[311752385,1705377042996,-572.48,0.00024342,2]
[311752386,1705377043005,-923.17,0.00024342,2]
[311752387,1705377043014,-500.0,0.00024342,2]
[311752388,1705377043024,-1511.34,0.00024342,2]
[311752389,1705377043034,-993.324617,0.00024343,2]
[311752390,1705377043044,-993.32462011,0.00024343,2]
[311752391,1705377043053,-550.76,0.00024344,2]
[311752392,1705377043062,-1576.94,0.00024344,2]
[311752393,1705377043071,-8122.34,0.00024344,2]
[311752394,1705377043080,-500.0,0.00024344,2]
[311752395,1705377043090,-500.0,0.00024344,2]
[311752396,1705377043099,-2170.17,0.00024344,2]
[311752398,1705377043109,-217.60980142,0.0002438,2]
[311752399,1705377043119,-131322.63334162,0.0002448,2]
[311752400,1705377043130,-151.0,0.0002448,2]
[311752401,1705377043140,-166.666666,0.00024482,2]
[311752402,1705377043150,-274.59826895,0.00024578,2]
[311752403,1705377043160,-500.0,0.00024578,2]
[311752404,1705377043169,-500.0,0.00024578,2]
[311752405,1705377043179,-512.74145213,0.00024578,2]
[311752406,1705377043188,-796.22,0.00024578,2]
[311752408,1705377043198,-500.0,0.00024579,2]
[311752410,1705377043207,-500.0,0.00024579,2]
[311752411,1705377043216,-500.0,0.00024579,2]
[311752412,1705377043228,-500.0,0.00024579,2]
[311752414,1705377043237,-500.0,0.00024579,2]
[311752416,1705377043246,-505.23091024,0.00024579,2]
[311752417,1705377043255,-500.0,0.00024579,2]
[311752418,1705377043264,-535.01,0.00024579,2]
[311752419,1705377043273,-505.48,0.00024579,2]
[311752420,1705377043282,-733.48,0.00024579,2]
[311752421,1705377043292,-500.0,0.00024579,2]
[311752422,1705377043303,-509.76,0.00024579,2]
[311752423,1705377043312,-593.83715571,0.00024579,2]
[311752424,1705377043322,-2683.72,0.00024579,2]
[311752425,1705377043331,-1934.31,0.00024579,2]
[311752426,1705377043340,-500.0,0.00024579,2]
[311752427,1705377043350,-500.0,0.00024579,2]
[311752428,1705377043359,-1051.06,0.00024579,2]
[311752429,1705377043369,-295.74963067,0.0002458,2]
[311752430,1705377043378,-500.0,0.0002458,2]
[311752431,1705377043386,-920.06,0.0002458,2]
[311752432,1705377043395,-5484.47,0.00024614,2]
[311752433,1705377043404,-500.0,0.00024615,2]
[311752435,1705377043413,-500.0,0.00024615,2]
[311752436,1705377043421,-636.78,0.00024615,2]
[311752438,1705377043431,-1219.25,0.00024615,2]
[311752440,1705377043440,-572.48,0.00024616,2]
[311752441,1705377043449,-923.17,0.00024616,2]
[311752443,1705377043458,-500.0,0.00024616,2]
[311752445,1705377043469,-1511.34,0.00024616,2]
[311752446,1705377043479,-550.76,0.00024618,2]
[311752448,1705377043488,-1576.94,0.00024618,2]
[311752449,1705377043496,-8122.34,0.00024618,2]
[311752451,1705377043506,-500.0,0.00024618,2]
[311752452,1705377043515,-500.0,0.00024618,2]
[311752454,1705377043525,-2170.17,0.00024618,2]
[311752456,1705377043534,-388.5668798,0.00024657,2]
[311752457,1705377043543,-380.0,0.00024658,2]
[311752459,1705377043551,-28303.51502275,0.00024754,2]
[311752461,1705377043560,-1505.59847102,0.00024792,2]
[311752462,1705377043569,-155.290543,0.00024793,2]
[311752464,1705377043578,-155.15795991,0.00024793,2]
[311752465,1705377043587,-500.0,0.00024852,2]
[311752466,1705377043596,-500.0,0.00024852,2]
[311752467,1705377043606,-796.22,0.00024852,2]
[311752468,1705377043615,-500.0,0.00024853,2]
[311752469,1705377043624,-473.69515574,0.00024853,2]
[311752470,1705377043634,-500.0,0.00024853,2]
[311752471,1705377043642,-500.0,0.00024853,2]
[311752472,1705377043653,-500.0,0.00024853,2]
[311752473,1705377043662,-535.01,0.00024853,2]
[311752474,1705377043671,-505.48,0.00024853,2]
[311752475,1705377043680,-733.48,0.00024853,2]
[311752476,1705377043690,-500.0,0.00024853,2]
[311752477,1705377043699,-509.76,0.00024853,2]
[311752478,1705377043708,-2683.72,0.00024853,2]
[311752479,1705377043719,-1934.31,0.00024853,2]
[311752480,1705377043728,-500.0,0.00024853,2]
[311752481,1705377043737,-500.0,0.00024853,2]
[311752482,1705377043747,-1051.06,0.00024853,2]
[311752483,1705377043756,-500.0,0.00024854,2]
[311752484,1705377043766,-920.06,0.00024854,2]
[311752485,1705377043775,-5484.47,0.00024888,2]
[311752486,1705377043784,-500.0,0.00024889,2]
[311752487,1705377043794,-500.0,0.00024889,2]
[311752488,1705377043803,-636.78,0.00024889,2]
[311752489,1705377043813,-1219.25,0.00024889,2]
[311752490,1705377043822,-572.48,0.0002489,2]
[311752491,1705377043831,-923.17,0.0002489,2]
[311752492,1705377043841,-500.0,0.0002489,2]
[311752493,1705377043850,-1511.34,0.0002489,2]
[311752494,1705377043859,-550.76,0.00024892,2]
[311752495,1705377043869,-1576.94,0.00024892,2]
[311752496,1705377043878,-8122.34,0.00024892,2]
[311752497,1705377043887,-500.0,0.00024892,2]
[311752498,1705377043897,-500.0,0.00024892,2]
[311752499,1705377043906,-2170.17,0.00024892,2]
[311752500,1705377043916,-867.52029566,0.00024893,2]
[311752501,1705377043925,-498.39631128,0.0002495,5]
[311752502,1705377043934,-4716.82638211,0.00025,2]
[311752503,1705377043943,-1045.05948708,0.00025,2]
[311752504,1705377043952,-678.60233026,0.00025,2]
[311752505,1705377043961,-701.11141564,0.00025,2]
[311752506,1705377043972,-14171.54481053,0.00025,2]
[311752507,1705377043981,-2036.09478117,0.00025116,2]
[311752508,1705377043991,-500.0,0.00025126,2]
[311752509,1705377044002,-500.0,0.00025126,2]
[311752510,1705377044011,-796.22,0.00025126,2]
[311752511,1705377044020,-500.0,0.00025127,2]
[311752512,1705377044030,-500.0,0.00025127,2]
[311752513,1705377044039,-500.0,0.00025127,2]
[311752514,1705377044048,-572.5019726,0.00025127,2]
[311752515,1705377044057,-500.0,0.00025127,2]
[311752516,1705377044066,-535.01,0.00025127,2]
[311752517,1705377044075,-505.48,0.00025127,2]
[311752518,1705377044084,-733.48,0.00025127,2]
[311752519,1705377044093,-500.0,0.00025127,2]
[311752520,1705377044102,-509.76,0.00025127,2]
[311752521,1705377044112,-2683.72,0.00025127,2]
[311752522,1705377044121,-1934.31,0.00025127,2]
[311752523,1705377044131,-500.0,0.00025127,2]
[311752524,1705377044141,-500.0,0.00025127,2]
[311752525,1705377044151,-1051.06,0.00025127,2]
[311752526,1705377044162,-500.0,0.00025128,2]
[311752527,1705377044171,-920.06,0.00025128,2]
[311752528,1705377044180,-5484.47,0.00025162,2]
[311752529,1705377044190,-500.0,0.00025163,2]
[311752530,1705377044199,-500.0,0.00025163,2]
[311752531,1705377044208,-636.78,0.00025163,2]
[311752532,1705377044218,-1219.25,0.00025163,2]
[311752533,1705377044228,-572.48,0.00025164,2]
[311752534,1705377044237,-923.17,0.00025164,2]
[311752535,1705377044246,-500.0,0.00025164,2]
[311752536,1705377044256,-1511.34,0.00025164,2]
[311752537,1705377044266,-550.76,0.00025166,2]
[311752538,1705377044275,-1576.94,0.00025166,2]
[311752539,1705377044284,-8122.34,0.00025166,2]
[311752540,1705377044293,-500.0,0.00025166,2]
[311752541,1705377044302,-500.0,0.00025166,2]
[311752542,1705377044311,-2170.17,0.00025166,2]
[311752543,1705377044321,-266.8480323,0.0002539,2]
[311752544,1705377044331,-49504.2338202,0.00025392,2]
[311752545,1705377044342,-500.0,0.000254,2]
[311752546,1705377044352,-500.0,0.000254,2]
[311752547,1705377044361,-796.22,0.000254,2]
[311752548,1705377044370,-500.0,0.00025401,2]
[311752549,1705377044379,-414.91223089,0.00025401,2]
[311752550,1705377044389,-500.0,0.00025401,2]
[311752551,1705377044398,-500.0,0.00025401,2]
[311752552,1705377044408,-535.01,0.00025401,2]
[311752553,1705377044418,-505.48,0.00025401,2]
[311752554,1705377044428,-733.48,0.00025401,2]
[311752555,1705377044437,-500.0,0.00025401,2]
[311752556,1705377044446,-509.76,0.00025401,2]
[311752557,1705377044455,-2683.72,0.00025401,2]
[311752558,1705377044465,-1934.31,0.00025401,2]
[311752559,1705377044475,-500.0,0.00025401,2]
[311752560,1705377044484,-500.0,0.00025401,2]
[311752561,1705377044493,-1051.06,0.00025401,2]
[311752562,1705377044503,-500.0,0.00025402,2]
[311752563,1705377044513,-920.06,0.00025402,2]
[311752564,1705377044524,-5484.47,0.00025436,2]
[311752565,1705377044533,-500.0,0.00025437,2]
[311752566,1705377044543,-500.0,0.00025437,2]
[311752567,1705377044552,-636.78,0.00025437,2]
[311752568,1705377044562,-1219.25,0.00025437,2]
[311752569,1705377044572,-572.48,0.00025438,2]
[311752570,1705377044581,-923.17,0.00025438,2]
[311752571,1705377044591,-500.0,0.00025438,2]
[311752572,1705377044600,-1511.34,0.00025438,2]
[311752573,1705377044609,-550.76,0.0002544,2]
[311752574,1705377044618,-1576.94,0.0002544,2]
[311752575,1705377044628,-8122.34,0.0002544,2]
[311752576,1705377044705,-500.0,0.0002544,2]
[311752577,1705377044715,-500.0,0.0002544,2]
[311752578,1705377044727,-2170.17,0.0002544,2]
[311752579,1705377044737,-200.0,0.00025479,2]
[311752580,1705377044746,-500.0,0.00025674,2]
[311752581,1705377044755,-500.0,0.00025674,2]
[311752582,1705377044765,-796.22,0.00025674,2]
[311752583,1705377044774,-500.0,0.00025675,2]
[311752584,1705377044784,-500.0,0.00025675,2]
[311752585,1705377044793,-500.0,0.00025675,2]
[311752586,1705377044803,-535.01,0.00025675,2]
[311752587,1705377044812,-505.48,0.00025675,2]
[311752588,1705377044821,-733.48,0.00025675,2]
[311752589,1705377044831,-500.0,0.00025675,2]
[311752590,1705377044840,-509.76,0.00025675,2]
[311752591,1705377044850,-2683.72,0.00025675,2]
[311752592,1705377044859,-1934.31,0.00025675,2]
[311752593,1705377044869,-500.0,0.00025675,2]
[311752594,1705377044878,-500.0,0.00025675,2]
[311752595,1705377044887,-1051.06,0.00025675,2]
[311752596,1705377044897,-500.0,0.00025676,2]
[311752597,1705377044906,-920.06,0.00025676,2]
[311752598,1705377044915,-5484.47,0.0002571,2]
[311752599,1705377044925,-500.0,0.00025711,2]
[311752600,1705377044934,-500.0,0.00025711,2]
[311752601,1705377044945,-636.78,0.00025711,2]
[311752602,1705377044954,-1219.25,0.00025711,2]
[311752603,1705377044965,-572.48,0.00025712,2]
[311752604,1705377044975,-923.17,0.00025712,2]
[311752605,1705377044985,-500.0,0.00025712,2]
[311752606,1705377044994,-1511.34,0.00025712,2]
[311752607,1705377045003,-550.76,0.00025714,2]
[311752608,1705377045012,-1576.94,0.00025714,2]
[311752609,1705377045021,-8122.34,0.00025714,2]
[311752610,1705377045030,-500.0,0.00025714,2]
[311752611,1705377045040,-500.0,0.00025714,2]
[311752612,1705377045049,-2170.17,0.00025714,2]
[311752613,1705377045058,-500.0,0.00025948,2]
[311752614,1705377045067,-500.0,0.00025948,2]
[311752615,1705377045077,-796.22,0.00025948,2]
[311752616,1705377045086,-500.0,0.00025949,2]
[311752617,1705377045095,-500.0,0.00025949,2]
[311752618,1705377045104,-500.0,0.00025949,2]
[311752619,1705377045112,-535.01,0.00025949,2]
[311752620,1705377045121,-505.48,0.00025949,2]
[311752621,1705377045131,-733.48,0.00025949,2]
[311752622,1705377045140,-500.0,0.00025949,2]
[311752623,1705377045149,-509.76,0.00025949,2]
[311752624,1705377045158,-2683.72,0.00025949,2]
[311752625,1705377045168,-1934.31,0.00025949,2]
[311752626,1705377045177,-500.0,0.00025949,2]
[311752627,1705377045186,-500.0,0.00025949,2]
[311752628,1705377045195,-1051.06,0.00025949,2]
[311752629,1705377045204,-500.0,0.0002595,2]
[311752630,1705377045214,-920.06,0.0002595,2]
[311752631,1705377045224,-5484.47,0.00025984,2]
[311752632,1705377045233,-500.0,0.00025985,2]
[311752633,1705377045242,-500.0,0.00025985,2]
[311752634,1705377045252,-636.78,0.00025985,2]
[311752635,1705377045261,-1219.25,0.00025985,2]
[311752636,1705377045271,-572.48,0.00025986,2]
[311752637,1705377045280,-923.17,0.00025986,2]
[311752638,1705377045289,-500.0,0.00025986,2]
[311752639,1705377045298,-1511.34,0.00025986,2]
[311752640,1705377045308,-550.76,0.00025988,2]
[311752641,1705377045317,-1576.94,0.00025988,2]
[311752642,1705377045326,-8122.34,0.00025988,2]
[311752643,1705377045336,-500.0,0.00025988,2]
[311752644,1705377045345,-500.0,0.00025988,2]
[311752645,1705377045355,-2170.17,0.00025988,2]
[311752646,1705377045364,-200.4984224,0.00026027,2]
[311752647,1705377045373,-151.0,0.00026129,2]
[311752648,1705377045383,-632.37601478,0.00026137,2]
[311752649,1705377045392,-500.0,0.00026222,2]
[311752650,1705377045401,-500.0,0.00026222,2]
[311752651,1705377045410,-796.22,0.00026222,2]
[311752652,1705377045419,-500.0,0.00026223,2]
[311752653,1705377045428,-500.0,0.00026223,2]
[311752654,1705377045438,-500.0,0.00026223,2]
[311752655,1705377045447,-535.01,0.00026223,2]
[311752656,1705377045456,-505.48,0.00026223,2]
[311752657,1705377045466,-733.48,0.00026223,2]
[311752658,1705377045476,-361.48674748,0.00026223,2]
[311752659,1705377045485,-509.76,0.00026223,2]
[311752660,1705377045494,-2683.72,0.00026223,2]
[311752661,1705377045503,-1934.31,0.00026223,2]
[311752662,1705377045513,-500.0,0.00026223,2]
[311752663,1705377045522,-500.0,0.00026223,2]
[311752664,1705377045531,-1051.06,0.00026223,2]
[311752665,1705377045540,-500.0,0.00026224,2]
[311752666,1705377045549,-920.06,0.00026224,2]
[311752667,1705377045558,-5484.47,0.00026258,2]
[311752668,1705377045568,-500.0,0.00026259,2]
[311752669,1705377045577,-500.0,0.00026259,2]
[311752670,1705377045586,-636.78,0.00026259,2]
[311752671,1705377045594,-1219.25,0.00026259,2]
[311752672,1705377045603,-572.48,0.0002626,2]
[311752673,1705377045612,-923.17,0.0002626,2]
[311752674,1705377045620,-500.0,0.0002626,2]
[311752675,1705377045630,-1511.34,0.0002626,2]
[311752676,1705377045639,-550.76,0.00026262,2]
[311752677,1705377045647,-1576.94,0.00026262,2]
[311752678,1705377045656,-8122.34,0.00026262,2]
[311752679,1705377045665,-500.0,0.00026262,2]
[311752680,1705377045674,-500.0,0.00026262,2]
[311752681,1705377045682,-2170.17,0.00026262,2]
[311752682,1705377045691,-151.0,0.00026431,2]
[311752683,1705377045700,-202.28868601,0.00026486,2]
[311752684,1705377045708,-500.0,0.00026496,2]
[311752685,1705377045718,-500.0,0.00026496,2]
[311752686,1705377045727,-796.22,0.00026496,2]
[311752687,1705377045736,-500.0,0.00026497,2]
[311752688,1705377045744,-500.0,0.00026497,2]
[311752689,1705377045753,-500.0,0.00026497,2]
[311752690,1705377045762,-535.01,0.00026497,2]
[311752691,1705377045770,-505.48,0.00026497,2]
[311752692,1705377045779,-733.48,0.00026497,2]
[311752693,1705377045788,-509.76,0.00026497,2]
[311752694,1705377045797,-2683.72,0.00026497,2]
[311752695,1705377045806,-1934.31,0.00026497,2]
[311752696,1705377045814,-500.0,0.00026497,2]
[311752697,1705377045823,-500.0,0.00026497,2]
[311752698,1705377045832,-1051.06,0.00026497,2]
[311752699,1705377045841,-500.0,0.00026498,2]
[311752700,1705377045849,-920.06,0.00026498,2]
[311752701,1705377045858,-2000.0,0.000265,2]
[311752702,1705377045867,-2000.0,0.0002651,2]
[311752703,1705377045875,-280.0,0.0002651,15]
[311752704,1705377045884,-2000.0,0.0002652,2]
[311752705,1705377045893,-2000.0,0.0002653,2]
[311752706,1705377045901,-5484.47,0.00026532,2]
[311752707,1705377045910,-500.0,0.00026533,2]
[311752708,1705377045919,-500.0,0.00026533,2]
[311752709,1705377045929,-636.78,0.00026533,2]
[311752710,1705377045938,-1219.25,0.00026533,2]
[311752711,1705377045947,-572.48,0.00026534,2]
[311752712,1705377045955,-923.17,0.00026534,2]
[311752713,1705377045964,-500.0,0.00026534,2]
[311752714,1705377045975,-1511.34,0.00026534,2]
[311752715,1705377045984,-550.76,0.00026536,2]
[311752716,1705377045992,-1576.94,0.00026536,2]
[311752717,1705377046001,-8122.34,0.00026536,2]
[311752718,1705377046010,-500.0,0.00026536,2]
[311752719,1705377046019,-500.0,0.00026536,2]
[311752720,1705377046027,-2170.17,0.00026536,2]
[311752721,1705377046036,-2000.0,0.0002654,2]
[311752722,1705377046045,-2000.0,0.0002655,2]
[311752723,1705377046054,-2000.0,0.0002656,2]
[311752724,1705377046062,-2000.0,0.0002657,2]
[311752725,1705377046072,-2000.0,0.0002658,2]
[311752726,1705377046080,-2000.0,0.0002659,2]
[311752727,1705377046089,-2000.0,0.000266,2]
[311752728,1705377046098,-2000.0,0.0002661,2]
[311752729,1705377046106,-2000.0,0.0002662,2]
[311752730,1705377046115,-2000.0,0.0002663,2]
[311752731,1705377046124,-2000.0,0.0002664,2]
[311752732,1705377046133,-2000.0,0.0002665,2]
[311752733,1705377046141,-2000.0,0.0002666,2]
[311752734,1705377046150,-2000.0,0.0002667,2]
[311752735,1705377046159,-2000.0,0.0002668,2]
[311752736,1705377046167,-2744.311707,0.0002669,2]
[311752737,1705377046176,-200.0,0.000267,4]
[311752738,1705377046185,-500.0,0.0002677,2]
[311752739,1705377046194,-446.73781732,0.0002677,2]
[311752740,1705377046203,-796.22,0.0002677,2]
[311752741,1705377046212,-500.0,0.00026771,2]
[311752742,1705377046221,-500.0,0.00026771,2]
[311752743,1705377046230,-524.97495764,0.00026771,2]
[311752744,1705377046239,-535.01,0.00026771,2]
[311752745,1705377046248,-505.48,0.00026771,2]
[311752746,1705377046257,-733.48,0.00026771,2]
[311752747,1705377046266,-509.76,0.00026771,2]
[311752749,1705377046275,-2683.72,0.00026771,2]
[311752751,1705377046284,-1934.31,0.00026771,2]